Cogmind - Beta 16 @@@ ROGUE MODE // 2025.11.18 @ 22:50:38 Player: guru-sr Result: Destroyed by E3-JYL(R) with Subdweller Shrapnel Launcher Performance ------------- Evolutions (0) 0 Regions Visited (2) 400 Robots Destroyed (30) 150 Value Destroyed (513) 513 Prototype IDs (12) 240 Alien Tech Used (0) 0 Bonus (0) 0 TOTAL SCORE: 1303 Bonus ------- None Cogmind --------- Core Integrity 0/250 Matter 280/300 Energy 83/125 System Corruption 0% Temperature Cool (9) Movement Treading (240) Ox1 Location -10/Subcaves Parts ------- > --- POWER (1) -------- Light Ion Engine > --- PROPULSION (2) --- Light Treads Light Treads > --- UTILITY (2) ------ High-capacity Storage Unit Makeshift Light Armor Plating > --- WEAPON (2) ------- Beam Rifle Subdweller Laser > --- INVENTORY (20) --- Light Treads Light Treads Light Treads Spiked Treads Armored Wheel Armored Wheel Armored Wheel Armored Wheel Large Matter Pod (150) Improved Terrain Scanner Seismic Detector Makeshift Light Armor Plating Hacking Suite Hacking Suite Beam Rifle Beam Rifle Powered Cannon Datajack Mining Laser Peak State ------------ > --- POWER ------------ Light Ion Engine > --- PROPULSION ------- Light Treads Armored Wheel > --- UTILITY ---------- High-capacity Storage Unit Makeshift Light Armor Plating > --- WEAPON ----------- Beam Rifle Subdweller Laser > --- INVENTORY -------- Light Treads Light Treads Light Treads Light Treads Spiked Treads Armored Wheel Armored Wheel Armored Wheel Large Matter Pod Improved Terrain Scanner Seismic Detector Makeshift Light Armor Plating Hacking Suite Hacking Suite Beam Rifle Beam Rifle Powered Cannon Datajack Mining Laser [Rating: 17] Favorites ----------- Power Light Ion Engine Engine Light Ion Engine Propulsion Light Treads Treads Light Treads Wheel Armored Wheel Utility Improved Terrain Scanner Device Improved Terrain Scanner Storage High-capacity Storage Unit Processor Transport Network Coupler Protection Makeshift Light Armor Plating Weapon Beam Rifle Energy Gun Beam Rifle Ballistic Gun Light Assault Rifle Special Weapon Mining Laser Build | -11 -10 -10 ------- Run | Yrd Mat Sub Slots Evolved . | . . . Power . | . . . Propulsion . | . . . Utility . | . . . Weapon . | . . . Parts Attached 25 | 7 13 5 Power 5 | 1 3 1 Engine 5 | 1 3 1 Core . | . . . Reactor . | . . . Propulsion 6 | 2 2 2 Treads 4 | 2 1 1 Leg . | . . . Wheel 2 | . 1 1 Hover . | . . . Flight . | . . . Utility 7 | 2 4 1 Device 2 | 1 1 . Storage 3 | 1 2 . Processor 1 | . 1 . Hackware . | . . . Protection 1 | . . 1 Artifact . | . . . Weapon 7 | 2 4 1 Energy Gun 4 | 1 2 1 Energy Cannon . | . . . Ballistic Gun 2 | 1 1 . Ballistic Cannon . | . . . Launcher . | . . . Special Weapon 1 | . 1 . Impact Weapon . | . . . Slashing Weapon . | . . . Piercing Weapon . | . . . Special Melee Weapon . | . . . Unidentified Prototypes . | . . . Parts Lost 3 | . 1 2 Power 2 | . 1 1 Propulsion 1 | . . 1 Utility . | . . . Weapon . | . . . Highest Loss Streak 2 | . 1 2 To Critical Strikes . | . . . Average Backups 15 | 3 15 19 Power 1 | . 1 . Propulsion 5 | . 5 8 Utility 5 | . 5 5 Weapon 3 | 1 3 3 Tool/Special . | . . . Unused Backups 23 | 1 4 18 Power 1 | . 1 . Propulsion 9 | 1 . 8 Utility 7 | . 1 6 Weapon 5 | . 2 3 Tool/Special 1 | . . 1 Average Slot Usage (%) 99 | . 99 99 Engine 13 | . 14 13 Treads 26 | . 27 18 Wheel 1 | . . 9 Device 13 | . 14 11 Storage 14 | . 14 14 Energy Gun 14 | . 12 21 Ballistic Gun 12 | . 13 5 Special Weapon 1 | . 1 . Peak Build Rating 17 | 9 13 17 Average Rating 11 | 6 11 13 On Entrance 6 | . 9 11 Avg Prop Armor Cover (%) 12 | . 11 12 Naked Turns . | . . . Heaviest Build 54 | 12 48 54 Greatest Support 40 | 40 40 40 Greatest Overweight (x) 4 | . 1 4 Average Overweight (x) 1 | . . 3 Largest Inventory Capacity 20 | 8 20 20 Average Capacity 17 | 7 17 20 Most Carried 20 | 6 20 20 Average Carried 15 | 3 15 19 Final Capacity 20 | 8 20 20 Final Carried 20 | 6 19 20 Class Distribution -------------------- 72% | Mutant 27% | Scavenger-Mutant Dominant Class ---------------- Mutant | -10/Materials Scavenger-Mutant | -10/Subcaves Resources | -11 -10 -10 ----------- Run | Yrd Mat Sub Matter Collected 928 | 278 490 160 Remotely . | . . . Salvage Created 857 | 114 602 141 Parts 61 | 9 45 7 Haulers Intercepted 2 | . 2 . Recyclers Shooed . | . . . Parts Field Recycled . | . . . Retrieved Matter . | . . . Parts Self-Destructed 2 | . . 2 Prevented . | . . . Parts Restored . | . . . Kills | -11 -10 -10 ------- Run | Yrd Mat Sub Combat Hostiles Destroyed 18 | . 15 3 Guns 18 | . 15 3 Classes Destroyed 9 | 2 6 1 Worker 1 | . 1 . Tunneler 2 | 2 . . Hauler 2 | . 2 . Recycler 1 | 1 . . Operator 4 | . 4 . Watcher 2 | . 2 . Swarmer 9 | . 9 . Grunt 6 | . 6 . Subdweller 3 | . . 3 Best Kill Streak 3 | 1 3 2 Combat Bots Only 3 | . 3 2 Max Kills in Single Turn 1 | 1 1 1 Gunslinging . | . . . Exploded . | . . . Melee . | . . . Uniques/NPCs Destroyed . | . . . Combat | -11 -10 -10 -------- Run | Yrd Mat Sub Hostile Shots Fired 98 | . 69 29 Missed 20 | . 13 7 Hits 78 | . 56 22 Projectile 78 | . 56 22 AOE 3 | . . 3 Damage Taken 1115 | . 501 614 Core 264 | . 100 164 Absorbed by Shields . | . . . Regen/Repaired (Parts) 102 | . 102 . Core Remaining (%) 100 | 100 . . Volleys Fired 93 | 8 66 19 Largest 2 | 2 2 2 Hottest 116 | 70 100 116 Shots Fired 174 | 16 121 37 Gun 162 | 16 110 36 Cannon . | . . . Launcher . | . . . Special 12 | . 11 1 Kinetic 79 | 8 55 16 Thermal 95 | 8 66 21 Explosive . | . . . Electromagnetic . | . . . Robot Hit Streak 23 | 5 7 23 Robot Miss Streak 2 | 1 2 2 Penetration Max . | . . . Secondary Targets 5 | . 5 . Max Gunslinging Chain 1 | . 1 . Shots Hit Robots 115 | 10 73 32 Core Hits 47 | 5 34 8 Critical Kills . | . . . Critical Parts Destroyed 1 | . 1 . Critical Strikes 3 | . 2 1 Burn 2 | . 1 1 Destroy 1 | . 1 . Melee Attacks . | . . . Impact . | . . . Slashing . | . . . Piercing . | . . . Sneak Attacks . | . . . Combat Hostiles . | . . . Follow-up Attacks . | . . . Damage Inflicted 1382 | 93 902 387 Guns 1382 | 93 902 387 Cannons . | . . . Explosions . | . . . Melee . | . . . Ramming . | . . . Kinetic 447 | 43 289 115 Thermal 935 | 50 613 272 Explosive . | . . . Electromagnetic . | . . . Impact . | . . . Slashing . | . . . Piercing . | . . . Highest Corruption . | . . . Average Corruption . | . . . Corruption Purged . | . . . Corruption Blocked . | . . . Overload Shots . | . . . Overflow Damage . | . . . Projectiles . | . . . Explosions . | . . . Melee . | . . . Knockbacks . | . . . Impact . | . . . Kinetic . | . . . Secondary . | . . . Self-Inflicted Damage . | . . . Shots . | . . . Rammed . | . . . Targets Rammed . | . . . Kicked . | . . . Crushed . | . . . Highest Temperature 172 | 60 172 12 Average Temperature 40 | 27 45 5 Received Heat Transfer 126 | . 114 12 Siege Activations . | . . . Martial Activations . | . . . Shielding Activations . | . . . Robots Disrupted . | . . . Combat Hostiles . | . . . Robots Corrupted . | . . . Combat Hostiles . | . . . Parts Fried . | . . . Impact Corruptions . | . . . Robots Melted . | . . . Combat Hostiles . | . . . Parts Melted 8 | 1 6 1 Heat Transferred 2467 | 148 1591 728 Parts Sabotaged . | . . . Parts Stolen . | . . . Parts Stripped . | . . . Power Chain Reactions . | . . . Alert | -11 -10 -10 ------- Run | Yrd Mat Sub Maximum Alert Level . | . . . Low Security (%) 100 | 100 100 . Level 1 . | . . . Level 2 . | . . . Level 3 . | . . . Level 4 . | . . . Level 5 . | . . . High Security . | . . . Max Security . | . . . Peak Influence 174 | 5 174 . Initial . | . . . Average 82 | 1 86 . Influence Increases 610 | 15 595 . Destroy 0b10 Robot/C 300 | . 300 . Destroy 0b10 Robot/NC 50 | 15 35 . Destroy Leader 68 | . 68 . Successful Hack 43 | . 43 . Select Force Hacks 60 | . 60 . Disable Machine 15 | . 15 . Destroy Structure 14 | . 14 . Lose Combat Pursuer 60 | . 60 . Influence Decreases 610 | 15 437 158 Entered New Map 77 | . . 77 Time Decay 523 | 15 427 81 Lost Part 10 | . 10 . Squads Dispatched 5 | . 5 . Investigation 3 | . 3 . Extermination . | . . . Reinforcement 2 | . 2 . Assault . | . . . Garrison . | . . . Intercept . | . . . Searches Triggered . | . . . Construction Impeded . | . . . Haulers Reinforced . | . . . Active Scanning Responses . | . . . Cargo Convoy Interrupts . | . . . Stealth | -11 -10 -10 --------- Run | Yrd Mat Sub Distress Signals 1 | . 1 . Communications Jammed . | . . . Distress Signals . | . . . Times Spotted 35 | . 31 4 Peak Tracking Total 4 | . 4 3 Tactical Retreats 3 | . 3 . Traps | -11 -10 -10 ------- Run | Yrd Mat Sub Traps Triggered 2 | . 1 1 Indirectly . | . . . Trap Hack Attempts . | . . . Triggered . | . . . Disarmed . | . . . Reprogrammed . | . . . Reused . | . . . Traps Extracted . | . . . Installed . | . . . Triggered . | . . . Machines | -11 -10 -10 ---------- Run | Yrd Mat Sub Machines Disabled 2 | . 1 1 Max in Single Turn 1 | . 1 1 Machines Repaired . | . . . Machines Dismantled . | . . . Machines Sabotaged . | . . . Overloaded Fab Kills . | . . . Hacking | -11 -10 -10 --------- Run | Yrd Mat Sub Machines Accessed 11 | . 10 1 Terminals 7 | . 7 . Fabricators . | . . . Repair Stations 1 | . 1 . Recycling Units 2 | . 2 . Scanalyzers . | . . . Garrison Access . | . . . Total Hacks 48 | . 39 9 Successful 33 | . 24 9 Failed 14 | . 14 . Catastrophic . | . . . Database Lockouts 1 | . 1 . Manual 31 | . 31 . Terminals 32 | . 32 . Fabricators . | . . . Repair Stations 2 | . 2 . Recycling Units 5 | . 5 . Scanalyzers . | . . . Garrison Access . | . . . Terminal Hacks 18 | . 9 9 Record 8 | . . 8 Robot Analysis 5 | . 5 . Terminal Index 1 | . 1 . Locate Traps 2 | . 2 . Zone Layout 1 | . 1 . Proto ID Catalog 1 | . . 1 Fabricator Hacks . | . . . Repair Station Hacks 2 | . 2 . Scan Component 1 | . 1 . Repair 1 | . 1 . Recycling Unit Hacks 3 | . 3 . Report Inventory 2 | . 2 . Retrieve Components 1 | . 1 . Scanalyzer . | . . . Garrison Access Hacks . | . . . Unauthorized Hacks 10 | . 10 . Terminals 8 | . 8 . Assimilate 2 | . 2 . Botnet 2 | . 2 . Operators 1 | . 1 . Skim 3 | . 3 . Fabricators . | . . . Repair Stations . | . . . Recycling Units 2 | . 2 . Tunnel 2 | . 2 . Scanalyzers . | . . . Garrison Access . | . . . Data Cores Recovered . | . . . Used . | . . . Hacking Detections 8 | . 8 . Full Trace Events . | . . . Feedback Events . | . . . Feedback Blocked . | . . . Robot Schematics Acquired . | . . . Robots Built . | . . . Authchips . | . . . Time . | . . . Total Robot Build Rating . | . . . Part Schematics Acquired . | . . . Parts Built . | . . . Authchips . | . . . Time . | . . . Total Part Build Rating . | . . . Part Studies Acquired . | . . . Parts Repaired 1 | . 1 . Time 26 | . 26 . Parts Recycled . | . . . Recycled Matter . | . . . Retrieved Matter . | . . . Retrieved Components 10 | . 10 . Parts Scanalyzed . | . . . Part Schematics Acquired . | . . . Parts Damaged . | . . . Bothacking | -11 -10 -10 ------------ Run | Yrd Mat Sub Used RIF Installer . | . . . Robots Hacked . | . . . Non-combat . | . . . Combat . | . . . Robot Hacks Applied . | . . . Relay Couplers Released . | . . . Fabnet Peak Effective % . | . . . Robots Rewired . | . . . Allies Hacked . | . . . Hacks Repelled . | . . . Allies | -11 -10 -10 -------- Run | Yrd Mat Sub Total Allies 2 | . 2 . Largest Group 1 | . 1 . Highest-Rated Group 10 | . 10 . Highest-Rated Ally 10 | . 10 . Total Orders 2 | . 2 . STAY 2 | . 2 . Ally Attacks . | . . . Total Damage . | . . . Kills . | . . . Allies Corrupted . | . . . Allies Melted . | . . . Intel | -11 -10 -10 ------- Run | Yrd Mat Sub Active Infowar (turns) 3257 | 44 2731 482 Terrain 2574 | 44 2530 . Seismic 682 | . 200 482 T.N.C. 1 | . 1 . Robot Analysis Total 5 | . 5 . Derelict Logs Recovered 1 | . . 1 Drone Launches . | . . . Drone Recoveries . | . . . Exploration | -11 -10 -10 ------------- Run | Yrd Mat Sub Turns Passed 3440 | 127 2732 581 Spaces Moved 1378 | 58 1032 288 Core 10 | 10 . . Treads 1129 | 48 1019 62 Legs . | . . . Wheels 239 | . 13 226 Hover . | . . . Flight . | . . . Fastest Speed 50 | 50 115 135 Average Speed 204 | 141 217 169 Slowest Speed 240 | 160 240 240 Overloaded Moves . | . . . Propulsion Burnouts . | . . . Robots Hopped . | . . . Potential Cave-ins . | . . . Cave-ins Triggered . | . . . Exploration Rate (%) 38 | 5 97 14 Regions Visited 2 Branch Regions 1 Pre-discovered Areas 3 | . 2 1 Known Exits Taken . | . . . Unknown Exits Taken 2 | 1 1 . Scrap Searched 2 | . . 2 Spaces Dug 11 | . 11 . Terrain Destroyed 11 | . 11 . Melee . | . . . Projectile 11 | . 11 . AOE . | . . . Terrain Rammed . | . . . Walls Destroyed . | . . . Machines Disabled . | . . . Actions | -11 -10 -10 --------- Run | Yrd Mat Sub Total 1814 | 86 1384 344 Wait 239 | 6 223 10 Move 1376 | 57 1031 288 Hop . | . . . Pick Up 37 | 7 23 7 Fast Attach 11 | 7 2 2 Attach 4 | . 3 1 Detach 1 | . 1 . Swap 30 | . 20 10 Drop 23 | 1 15 7 Fire 93 | 8 66 19 Melee . | . . . Ram . | . . . Kick . | . . . Crush . | . . . Escape Stasis . | . . . Rewire . | . . . Trap . | . . . Miscellaneous . | . . . Route ------- -11/Scrapyard -10/Materials (discovered 5 exits: [*Mat x3] / [*Min] / *Sub) -10/Subcaves (discovered 1 exit: [*Mat]) History --------- Turn | Location | Event 11 | -11/Scrapyard | Discovered new exit (range 15) 128 | -11/Scrapyard | Entered Materials 308 | -10/Materials | Build established: Mutant 487 | -10/Materials | Discovered new exit (range 16) 864 | -10/Materials | Discovered new exit (range 16) 1024 | -10/Materials | Central database locked down 1423 | -10/Materials | Discovered new exit (range 13) 1660 | -10/Materials | Discovered new exit (range 8) 1871 | -10/Materials | Discovered new exit (range 4) 2358 | -10/Materials | Repaired Lgt. Treads 2700 | -10/Materials | Build established: Scavenger-Mutant 2860 | -10/Materials | Entered Subcaves 2860 | -10/Subcaves | Discovered new exit (range 7) 2861 | -10/Subcaves | Shifting Twisted Machinery released Sub. Monowheel 2861 | -10/Subcaves | Approached by a straggling Scientist 2872 | -10/Subcaves | Learned location of Storage (-8) 2893 | -10/Subcaves | Shifting Twisted Machinery released Sub. Power Source 3031 | -10/Subcaves | Visited 4L-MR0's lab 3032 | -10/Subcaves | Core integrity fell below 50% 3076 | -10/Subcaves | Core integrity fell below 20% 3133 | -10/Subcaves | Found Powered Cannon 3441 | -10/Subcaves | Destroyed by E3-JYL(R) with Subdweller Shrapnel Launcher Last Messages --------------- I hear [REDACTED] exploded during the installation process. I did warn them to fully install it before trying to fire, and something tells me that's where things went wrong. Still I'm glad they didn't listen, that way I'm not culpable for whatever they would've done with it. If we're lucky even some of the others got blasted, too. 03102_ Dropped Lgt. Assault Rifle. 03105_ Acquired Sub. Laser. 03109_ Subatomizers dissect the Disposable Heat Sink. KZ-UMO(c): "I think it's somewhere south of here" 03119_ Subatomizers dissect the Disposable Heat Sink. 03119_ Testing Chamber breached. 03126_ Dropped Lgt. Treads. 03131_ Subatomizers dissect the Lgt. Assault Rifle. 03132_ Dropped Datajack. 03133_ Acquired Powered Cannon. 03135_ Dropped Lrg. Battery. 03136_ Acquired Datajack. 03141_ Subatomizers dissect the Lgt. Assault Rifle. 03146_ Acquired 40 matter. KZ-UMO(c): "I think it's somewhere south of here" Map ----- +----------------------------------------------------+ | ????????????????????????# #+##= ## ## # | | ????????????????????????#""#%## "## ## # | | ????????????????????????####*"& "### ### # | | ???????????????????????????#"& ""### ##??## | | ????????????????????#"?????#######?### ##????? | | ????????????????????# ??????????????## ##????? | | ????????????????????? ???????####?## #????? | | ???????????????????### ?###?### #?# #????? | | ??????????????????## # ## ### #### ##????? | | ??????????????????# " " ## ##### #?????? | | ???????????????????# ## #??## #?????? | | ????????????????????# ###### #?????? | | ????????????????????#### ## # #?????? | | ??????????????????????## #?????? | | ???????????????????#### # ##?????? | | ???????????????????# ###### # ##???##?? | | ???????????????????# ##????##### ##??? ##? | | ???????????????????#### #####??## ##?? ## | | ??????????????????????### ##?# #?? # | | ????????????????????????# #?## ### # | | ????????????????????###### #??## # | | ????????????????????# ; ##???### | | ????????????????????# ##??????### | | ????????????????????# ; ##????????##% # | | ????????????????????# #?????????# # | | ????????????????????#; @ ##?????????# % # | | ???????????????# ## #??????##?## | | ??????????????????# #?????## ### ## | | ??????????????????## R #?????# #? | | ??????????????????# # c #?????# #? | | ?????????????????# ##### ???### #? | | ????????????????" ????## % #??## #? | | ??????????????? ???????### ?##### #? | | ??????????????????????????# % #???# #? | | ??????????????????????????%## ##% "#???# #? | | ?????????????????????????? ? #?? "????# # | | ????????????????????????? ? #???""#????" # | | ????????????????????????? ?## """????"#???? # | | ????????????????????????? ???# #????????? # | | ???????????????????????? ???? "????????? # ## | | ???????????????????????? ???? ?????????? #?# #? | | ???????????????????????? ????? ?????????? ???##? | | ???????????????????????? ??????? ?????????? ?????? | | ??????????????????????????????????????????? ?????? | | ?????????????????????????????????????????? ?????? | | ?????????????????????????????????????????? ??????? | | ?????????????????????????????????????????????????? | | ?????????????????????????????????????????????????? | | ?????????????????????????????????????????????????? | | ?????????????????????????????????????????????????? | +----------------------------------------------------+ Best States ------------- Heat Dissipation 25 Energy Generation 10 Energy Capacity 250 Matter Stores 300 Matter Capacity 300 Sight Range 16 Terrain Scan Range 16 Terrain Scan Density 10 Armor Coverage 100 Evasion (%) 50 Recoil Reduction 2 Item Schematics ----------------- None Robot Schematics ------------------ None Fabricated ------------ Nothing Repaired ---------- Lgt. Treads | 27% | -10/Materials Studied --------- None Alien Tech Used ----------------- None Achievements -------------- None Challenges ------------ None Game ------ Seed ShadeLobotomyArray Manual? 0 Play Time 00:41:35 Cumulative 40.7 hours Start 2025.11.18 @ 22:05:14 End 2025.11.18 @ 22:50:38 Sessions 1 Manual Loads 0 Difficulty Rogue Special Mode None Game No. 23 Rogue 23 Adventurer 0 Explorer 0 Win Type - Total 1 Types 1/0/0/0/0/0/0/0/0/0 Lore% 22 Gallery% 26 Achievement% 33 Wizard Run 0 Options --------- Layout 0 ASCII 0 Keyboard 0 Movement Mouse Keybinds 0 Fullscreen 1 Font 18/SmallcapsGlow Map View 76x50 Zoom Use 0% Tactical HUD 1 Map Filters NONE Filters NONE Steam 1 RUN: cd2cb443-3d31-472f-84ca-ecb2c0250b92